[Event "4NCL 2022-2023"]
[Site "Daventry"]
[Date "2023.01.14"]
[Round "3.7"]
[White "Radeva, Viktoria"]
[Black "Southcott-Moyers, Indy"]
[Result "1/2-1/2"]
[ECO "C54"]
[WhiteElo "2242"]
[BlackElo "1870"]
[Annotator "TA"]
[PlyCount "83"]
[EventDate "2022.10.20"]
[EventType "team-tourn"]
[EventCountry "ENG"]
[SourceTitle "playchess.com"]
[Source "ChessBase"]
[SourceQuality "1"]
[TimeControl "40/6000+30:2400+30"]

{[%evp 12,83,21,10,14,10,23,16,22,10,15,23,18,12,22,18,29,35,40,40,48,24,35,12,28,8,20,5,113,19,42,-10,34,17,41,-31,-27,-28,-34,-51,12,-34,-10,-21,-15,-75,-75,-110,-117,-156,-26,-20,0,0,0,0,0,-33,0,0,0,0,0,0,100,82,114,77,151,44,52,31,42,9]} 1. e4 {[%emt 0:00:08]} e5 {[%emt 0:00:21]} 2. Nf3 {[%emt 0:00:06]} Nc6 {[%emt 0:00:05]} 3. Bc4 {[%emt 0:00:15]} Bc5 {[%emt 0:01:30]} 4. d3 {[%emt 0:00:07]} Nf6 {[%emt 0:00:05]} 5. O-O {[%emt 0:00:30]} d6 {[%emt 0:02:03]} 6. c3 {[%emt 0:00:11]} h6 {[%emt 0:04:20]} 7. Nbd2 {[%emt 0:00:28]} (7. b4 $5 Bb6 $8 8. Nbd2 $11) 7... a6 {[%emt 0:05:02] C54: Giuoco Piano: 4 c3 Nf6, main lines with 5 d4 and 5 d3.} 8. a4 {[%emt 0:00:26] Nowadays more popular than 8.Bb3.} O-O {[%emt 0:01:59]} 9. h3 {[%emt 0:00:11]} Re8 {[%emt 0:02:58] The position is equal.} 10. Re1 {[%emt 0:00:14]} Be6 {[%emt 0:01:45]} 11. Bxe6 {[%emt 0:00:41]} Rxe6 {[%emt 0:01:09]} 12. b4 {[%emt 0:00:41]} Ba7 {[%emt 0:00:57]} 13. Qc2 {[%emt 0:04:02]} Re8 {[%emt 0:09:03]} 14. Nf1 {[%emt 0:02:27][%cal Bd2f1,Bf1g3,Bg3f5][%mdl 32]} Ne7 {[%emt 0:06:45]} 15. Ng3 {[%emt 0:05:04]} Ng6 {[%emt 0:03:49] [#]} 16. Nf5 $146 {[%emt 0:04:33]} ({Predecessor:} 16. c4 Nd7 17. a5 Ndf8 18. Be3 Ne6 19. c5 d5 20. d4 dxe4 21. Nxe5 Nxd4 22. Bxd4 Qxd4 23. Nxg6 {0-1 Karjakin,S (2785)-Nguyen,N (2629) Wch Rapid Doha 2016 (4)}) 16... c6 {[%emt 0:11:21]} 17. g3 {[%emt 0:13:57]} d5 {[%emt 0:09:55]} 18. Bd2 {[%emt 0:11:49]} Qd7 {[%emt 0:06:00]} 19. Rad1 {[%emt 0:06:54][%cal Od2h6]} Rad8 {[%emt 0:03:06]} (19... Ne7 $11 20. Nxe7+ (20. Nxe5 Qe6 $11) 20... Rxe7) 20. Kg2 {[%emt 0:21:29] White is more active.} ({White should play} 20. Bxh6 $1 $16 gxh6 21. Qc1 Bxf2+ 22. Kxf2 dxe4 23. g4) 20... Qe6 $11 {[%emt 0:12:11]} 21. Qc1 {[%emt 0:09:48]} (21. c4 $14) 21... Nh7 {[%emt 0:15:59]} (21... dxe4 $5 22. dxe4 Bxf2 23. Kxf2 Nxe4+ {[%mdl 64] Remove Defender, Decoy} 24. Rxe4 Qxf5 $11) 22. c4 {[%emt 0:05:31]} f6 {[%emt 0:03:01]} 23. h4 {[%emt 0:04:54]} (23. Qc2 $14) 23... Ne7 $1 $15 {[%emt 0:03:26]} 24. Nxe7+ {[%emt 0:01:40]} Qxe7 {[%emt 0:01:23]} (24... Rxe7 {seems wilder.} 25. b5 dxe4 26. dxe4 Bc5) 25. c5 {[%emt 0:00:53] [#]} a5 {[%emt 0:01:56]} 26. Qc2 {[%emt 0:02:44]} (26. bxa5 $11 Bxc5 27. a6) 26... axb4 {[%emt 0:01:28]} 27. Bxb4 {[%emt 0:00:08]} Qf7 {[%emt 0:00:19]} 28. Rb1 {[%emt 0:04:16] [#]} (28. d4 $11) 28... Nf8 $1 $17 {[%emt 0:00:20]} 29. Nd2 {[%emt 0:03:24]} Ne6 {[%emt 0:00:35]} 30. Nb3 {[%emt 0:00:26] [#]} dxe4 {[%emt 0:00:41]} (30... f5 $1 $17 {Strongly threatening ...fxe4.} 31. exf5 Qxf5) 31. dxe4 $11 {[%emt 0:00:12]} Nd4 {[%emt 0:00:11]} 32. Nxd4 {[%emt 0:01:55]} Rxd4 {[%emt 0:00:13]} 33. Rec1 {[%emt 0:02:48]} Red8 {[%emt 0:00:42]} 34. Bc3 {[%emt 0:03:28]} Rd3 {[%emt 0:01:00]} (34... Rc4 $5) 35. Ba5 {[%emt 0:00:29]} R8d4 {[%emt 0:01:10]} 36. Bc3 {[%emt 0:00:36]} Rd7 {[%emt 0:00:22]} 37. Rxb7 $1 {[%emt 0:00:42][%mdl 64] Deflection} Bxc5 {[%emt 0:01:05]} (37... Rxg3+ $11 {remains equal.} 38. fxg3 Rxb7) 38. Qxd3 {[%emt 0:00:32]} Rxb7 {[%emt 0:00:33]} 39. a5 {[%emt 0:00:40]} Rd7 {[%emt 0:00:22]} (39... Ba7 $142) 40. Qc2 {[%emt 0:00:07]} ({White should try} 40. Qa6 $16) 40... Ba7 $1 $14 {[%emt 0:00:20]} 41. Be1 {[%emt 0:40:41]} c5 {[%emt 0:00:00]} 42. Kh2 {[%emt 0:00:00] Weighted Error Value: White=0.26 (precise) /Black=0.25 (precise)} 1/2-1/2

[Event "4NCL 2022-2023"]
[Site "Daventry"]
[Date "2023.01.14"]
[Round "3.9"]
[White "Bluebaum, Matthias"]
[Black "Derakhshani, Borna"]
[Result "1-0"]
[ECO "D48"]
[WhiteElo "2661"]
[BlackElo "2400"]
[Annotator "TA"]
[PlyCount "77"]
[EventDate "2022.10.20"]
[EventType "team-tourn"]
[EventCountry "ENG"]
[SourceTitle "playchess.com"]
[Source "ChessBase"]
[SourceQuality "1"]
[TimeControl "40/6000+30:2400+30"]

{[%evp 20,76,8,16,86,90,76,79,103,85,136,29,41,45,33,47,51,0,68,-90,-104,-57,96,-74,0,0,0,0,45,60,166,171,169,168,194,198,241,226,223,200,201,205,181,149,368,350,464,365,1331,1374,1656,593,837,781,886,842,6207,1252,29999]} 1. Nf3 {[%emt 0:00:05]} d5 {[%emt 0:03:04]} 2. e3 {[%emt 0:00:23]} Nf6 {[%emt 0:00:23]} 3. c4 {[%emt 0:00:21]} c6 {[%emt 0:00:12]} 4. Nc3 {[%emt 0:00:28]} e6 {[%emt 0:00:37]} 5. d4 {[%emt 0:01:04]} Nbd7 {[%emt 0:00:15]} 6. Bd3 {[%emt 0:00:52]} dxc4 {[%emt 0:00:15]} 7. Bxc4 {[%emt 0:00:07]} b5 {[%emt 0:00:03]} 8. Bd3 {[%emt 0:00:05]} Bb7 {[%emt 0:02:33]} 9. O-O {[%emt 0:01:32]} a6 {[%emt 0:04:19]} 10. e4 {[%emt 0:01:12][%cal Be3e4,Be4e5][%mdl 32]} c5 {[%emt 0:03:04]} 11. d5 {[%emt 0:00:06]} Qb6 {[%emt 0:02:28] D48: Semi-Slav: Meran System: 7...b5 8 Bd3 a6.} (11... Qc7 $11 {remains equal.}) 12. dxe6 $16 {[%emt 0:10:55]} fxe6 {[%emt 0:00:04]} 13. e5 {[%emt 0:02:31] Prevents Bd6} Nd5 {[%emt 0:04:07] White is better.} 14. Ng5 {[%emt 0:08:58] [#]} g6 $146 {[%emt 0:00:24] [#] Prevents Qh5} (14... Nxe5 $142 15. Re1 O-O-O 16. Rxe5 Nxc3) ({Predecessor:} 14... O-O-O 15. Nxd5 Bxd5 16. Nf7 Be7 17. Qe2 Qb7 18. f3 Nb6 19. Be3 Kb8 20. Rfd1 c4 {1-0 Yilmazyerli,M (2436)-Sayin,A (1921) TUR Cup Antalya 2019 (2)}) 15. Nxh7 {[%emt 0:04:41] White is more active.} O-O-O $1 $11 {[%emt 0:03:18]} 16. Nxd5 {[%emt 0:06:00]} (16. Bxg6 $2 Nxc3 17. bxc3 Nxe5 $19) 16... Bxd5 {[%emt 0:18:45]} 17. Nxf8 {[%emt 0:00:30]} (17. Bxg6 $2 Nxe5 18. Bc2 Qc7 $19) 17... Rdxf8 {[%emt 0:14:42]} 18. Qe2 {[%emt 0:06:49]} (18. Bxg6 $2 Nxe5 19. Bg5 Nxg6 $19) (18. Qe1 $14) 18... Rh5 {[%emt 0:02:48]} ({Black should try} 18... Qd8 $1 $11 19. Qe3 (19. Bxg6 $2 Qh4 $19) 19... Qh4) 19. Bxg6 $2 {[%emt 0:07:49]} (19. Qe3 $1 $14 {keeps the upper hand.}) 19... Rxe5 $17 {[%emt 0:03:55]} 20. Qc2 {[%emt 0:08:47]} Rg8 $2 {[%emt 0:05:51]} (20... c4 $1 $15 {stays ahead.} 21. Bh6 (21. Be3 $2 Rxe3 22. fxe3 Qxe3+ 23. Rf2 Ne5 $19) 21... Rg8) 21. f3 $2 {[%emt 0:09:52]} (21. g3 $1 $16) 21... Bc4 {[%emt 0:02:00]} (21... c4+ $17 22. Kh1 Qd4) 22. Be4 $11 {[%emt 0:05:39][%cal Oc1f4] And now Bf4! would win.} Bxf1 {[%emt 0:02:00]} 23. Kxf1 {[%emt 0:00:02] Black must now prevent Bf4.} Rh5 {[%emt 0:02:36]} (23... Nf6 $5 {[%cal Re5e4]} 24. Bf4 Rxe4 25. fxe4 Rf8 $11) 24. g4 $36 {[%emt 0:05:47][%mdl 2048] White fights for an advantage.} Rh3 {[%emt 0:07:43]} (24... Rh4 $1 $14 25. Bf4 Rf8) 25. Bf4 $1 $18 {[%emt 0:02:35] aiming for Rd1. A strong pair of Bishops.} Rf8 {[%emt 0:02:23] [#]} 26. Bg3 {[%emt 0:02:54]} Rxg3 {[%emt 0:11:32]} 27. hxg3 {[%emt 0:00:07]} Ne5 {[%emt 0:00:03]} 28. Qc3 {[%emt 0:05:28]} Qd6 {[%emt 0:02:16]} 29. Kg2 {[%emt 0:00:19][%cal Oa1d1]} Rd8 {[%emt 0:00:37]} 30. Rf1 {[%emt 0:02:59][%cal Ba1f1,Bf1f2,Bf2d2][%mdl 32]} Nc4 {[%emt 0:01:34]} 31. Rf2 {[%emt 0:01:42] Prevents Qd2} e5 $2 {[%emt 0:04:44] This costs Black the game.} (31... Qd4 $16 {keeps fighting.} 32. Re2 Qxc3 33. bxc3 Kd7) 32. b3 {[%emt 0:02:27]} Rh8 {[%emt 0:01:15][%cal Od6d1] ...Qd1! is the strong threat.} 33. Qc1 {[%emt 0:02:11] Against Qd1} ({Less strong is} 33. bxc4 Qd1 34. Bf5+ (34. Qxe5 $2 Qh1#) 34... Kb7 $18) 33... Nb6 {[%emt 0:01:38]} (33... Qd1 34. Qxd1 Ne3+ 35. Kg1 Nxd1) 34. Rd2 {[%emt 0:00:56]} Qc7 {[%emt 0:04:33] [#] Black is weak on the light squares} 35. a4 $1 {[%emt 0:00:19][%mdl 512]} Kb8 {[%emt 0:00:53]} (35... Rd8 36. Rxd8+) 36. axb5 {[%emt 0:00:58]} axb5 {[%emt 0:00:01]} 37. Qa1 {[%emt 0:00:06] Qa6 would be deadly.} c4 {[%emt 0:01:03]} 38. bxc4 {[%emt 0:00:23]} (38. Qa6 $142 Rh7 39. Bxh7) 38... Nxc4 {[%emt 0:01:32]} 39. Qa8# {[%emt 0:00:55] A cool game by Bluebaum.   Weighted Error Value: White=0.52/Black=0.69} 1-0

[Event "4NCL 2022-2023"]
[Site "Daventry"]
[Date "2023.01.14"]
[Round "3.10"]
[White "Fernandez, Daniel Howard"]
[Black "Parligras, Mircea-Emilian"]
[Result "0-1"]
[ECO "A11"]
[WhiteElo "2481"]
[BlackElo "2565"]
[Annotator "TA"]
[PlyCount "68"]
[EventDate "2022.10.20"]
[EventType "team-tourn"]
[EventCountry "ENG"]
[SourceTitle "playchess.com"]
[Source "ChessBase"]
[SourceQuality "1"]
[TimeControl "40/6000+30:2400+30"]

{[%evp 11,68,4,11,4,7,0,9,0,0,0,5,-13,-7,-8,-15,-13,-2,-8,-10,-11,-4,-17,-14,-15,-12,-18,-16,-51,-47,-46,-43,-48,-45,-50,-47,-47,-47,-78,-43,-72,-85,-95,-95,-141,-141,-231,-214,-291,-285,-434,-409,-464,-462,-460,-431,-456,-452,-447,-390]} 1. Nf3 {[%emt 0:01:28]} d5 {[%emt 0:00:28]} 2. g3 {[%emt 0:04:54]} Bg4 {[%emt 0:00:47]} 3. Bg2 {[%emt 0:00:20]} e6 {[%emt 0:00:16]} 4. c4 {[%emt 0:01:44]} c6 {[%emt 0:00:37]} 5. O-O {[%emt 0:00:51]} Nf6 {[%emt 0:01:09]} 6. d3 {[%emt 0:03:51]} Be7 {[%emt 0:03:16] 6...dxc4 is the modern continuation.} 7. Qb3 {[%emt 0:02:27] A11: English Opening: 1...c6.} Qc8 {[%emt 0:00:52]} 8. Nc3 {[%emt 0:01:14]} O-O {[%emt 0:00:09]} 9. Bf4 {[%emt 0:05:10] [#] The position is equal.} Bxf3 $1 $146 {[%emt 0:08:27][%mdl 8] A relevant novelty.} ({Predecessor:} 9... Nbd7 10. cxd5 cxd5 11. Rfc1 Nc5 12. Qd1 Qd8 13. Rc2 Qb6 14. Rac1 Bh5 15. h3 Nfd7 {1-0 Wang,Y (2711)-Lupulescu,C (2643) Bazna Kings blitz 2014 (1)}) 10. Bxf3 {[%emt 0:00:18]} d4 {[%emt 0:00:06]} 11. Ne4 {[%emt 0:00:40]} Nxe4 {[%emt 0:00:33]} 12. Bxe4 {[%emt 0:00:10]} Nd7 {[%emt 0:00:12]} 13. Bg2 {[%emt 0:02:49]} a5 {[%emt 0:06:29]} 14. Qc2 {[%emt 0:01:59]} e5 {[%emt 0:00:47]} 15. Bd2 {[%emt 0:00:02]} Qc7 {[%emt 0:06:17]} 16. Rad1 {[%emt 0:11:56]} Bb4 {[%emt 0:07:39]} 17. e3 {[%emt 0:03:44]} Bxd2 {[%emt 0:03:03]} 18. Qxd2 {[%emt 0:00:27]} Qd6 {[%emt 0:08:24]} 19. exd4 {[%emt 0:03:29]} Qxd4 {[%emt 0:02:05]} 20. Qc3 {[%emt 0:04:51]} Nc5 {[%emt 0:02:50]} 21. Rfe1 {[%emt 0:02:50]} f6 {[%emt 0:03:34]} 22. Qxd4 {[%emt 0:04:16]} exd4 {[%emt 0:00:07]} 23. Kf1 {[%emt 0:00:15]} Rfe8 {[%emt 0:10:27]} 24. h4 {[%emt 0:00:03]} Kf7 {[%emt 0:01:06] Black is more active.} 25. Re2 {[%emt 0:00:58]} a4 {[%emt 0:06:24][%cal Ba5a4,Ba4a3][%mdl 32]} 26. Bf3 {[%emt 0:02:49]} Rxe2 {[%emt 0:05:30]} 27. Kxe2 $17 {[%emt 0:00:10][%mdl 4096] Endgame KRB-KRN} (27. Bh5+ $142 g6 28. Bxe2) 27... a3 $1 {[%emt 0:00:13]} 28. b4 {[%emt 0:01:28] [#]} (28. b3 $17) 28... Na4 $1 $19 {[%emt 0:00:08] Strongly threatening ...Nc3+.} 29. Kd2 {[%emt 0:04:39]} Nc3 {[%emt 0:03:20] ...Ra4 would be deadly.} 30. Ra1 {[%emt 0:00:40] [#]} (30. Kc2 $142 Nxd1 31. Bxd1) 30... Ra4 $1 {[%emt 0:00:23]} 31. Bd1 {[%emt 0:04:12]} Rxb4 {[%emt 0:02:53] Black is clearly winning.} 32. Bb3 {[%emt 0:00:09]} c5 {[%emt 0:00:46]} 33. f4 {[%emt 0:01:10]} f5 {[%emt 0:02:37]} 34. Re1 {[%emt 0:00:38]} Rb6 {[%emt 0:01:36][%mdl 64] Decoy.   Weighted Error Value: White=0.24 (precise) /Black=0.02 (flawless)} 0-1

[Event "4NCL 2022-2023"]
[Site "Daventry"]
[Date "2023.01.14"]
[Round "3.11"]
[White "Lupulescu, Constantin"]
[Black "Royal, Shreyas"]
[Result "1/2-1/2"]
[ECO "C45"]
[WhiteElo "2592"]
[BlackElo "2456"]
[Annotator "TA"]
[PlyCount "71"]
[EventDate "2022.10.20"]
[EventType "team-tourn"]
[EventCountry "ENG"]
[SourceTitle "playchess.com"]
[Source "ChessBase"]
[SourceQuality "1"]
[TimeControl "40/6000+30:2400+30"]

{[%evp 11,71,-3,0,0,0,0,0,0,0,0,0,5,0,0,9,13,8,4,11,11,12,8,0,0,0,0,0,0,0,0,25,0,0,0,0,0,0,0,0,0,0,0,0,0,0,0,0,0,0,0,0,0,0,0,0,0,0,-11,-5,-17,0,-125]} 1. e4 {[%emt 0:00:17]} e5 {[%emt 0:00:11]} 2. Nf3 {[%emt 0:00:04]} Nc6 {[%emt 0:00:05]} 3. d4 {[%emt 0:00:03]} exd4 {[%emt 0:00:07]} 4. Nxd4 {[%emt 0:00:03]} Nf6 {[%emt 0:00:06]} 5. Nxc6 {[%emt 0:00:06]} bxc6 {[%emt 0:00:04]} 6. Nd2 {[%emt 0:00:07]} d5 {[%emt 0:01:53]} 7. exd5 {[%emt 0:00:24] C45: Scotch Game.} cxd5 {[%emt 0:00:05]} 8. Bb5+ {[%emt 0:00:06]} Bd7 {[%emt 0:00:20]} 9. Bxd7+ {[%emt 0:00:19]} Qxd7 {[%emt 0:00:07]} 10. O-O {[%emt 0:00:08]} Be7 {[%emt 0:02:32]} 11. b3 {[%emt 0:00:18]} O-O {[%emt 0:00:33]} 12. Bb2 {[%emt 0:00:03]} Rfe8 {[%emt 0:10:21]} 13. Re1 {[%emt 0:10:10] [#]} Rad8 $146 {[%emt 0:07:32]} ({Predecessor:} 13... Ng4 14. Ne4 Bf8 15. Qd2 Qc6 16. Ng3 Bc5 17. Bd4 Bxd4 18. Qxd4 Nf6 19. Nf5 Qxc2 {½-½ Mosadeghpour,M (2469)-Ghaem Maghami,E (2519) IRI-ch Sari 2022 (2)}) 14. Qf3 {[%emt 0:07:08]} Ng4 {[%emt 0:04:38]} 15. h3 {[%emt 0:09:44]} Bf6 {[%emt 0:01:34]} 16. Rxe8+ {[%emt 0:06:31]} Rxe8 {[%emt 0:00:18]} 17. hxg4 {[%emt 0:07:07]} Bxb2 {[%emt 0:00:07]} 18. Rd1 {[%emt 0:00:05][%cal Od2c4]} Qe6 {[%emt 0:12:32]} 19. Nf1 {[%emt 0:07:05][%cal Bd2f1,Bf1e3,Be3f5,Bf5g3,Bg3e2,Be2f4,Bf4d3][%mdl 32]} c6 {[%emt 0:02:02]} 20. Ne3 {[%emt 0:01:09]} Qe4 {[%emt 0:07:06]} 21. c4 {[%emt 0:14:22][%cal Rc4d5]} (21. Qxe4 {simplifies} Rxe4 22. Kf1 Kf8 23. Ke2) 21... d4 {[%emt 0:07:17] [#] ...Qxf3 is the strong threat. The position is equal.} 22. Nf5 {[%emt 0:01:17]} Qxf3 {[%emt 0:01:58]} 23. gxf3 $11 {[%emt 0:01:45][%mdl 4096] Endgame KRB-KRN} g6 {[%emt 0:00:17]} 24. Ng3 {[%emt 0:03:55]} Kg7 {[%emt 0:03:02]} 25. Kf1 {[%emt 0:01:05]} a5 {[%emt 0:06:26]} 26. Ne2 {[%emt 0:10:20]} c5 {[%emt 0:13:02]} 27. Nf4 {[%emt 0:01:31]} Ba3 {[%emt 0:00:52]} 28. Nd3 {[%emt 0:01:57]} Bb4 {[%emt 0:01:56]} 29. Ra1 {[%emt 0:01:28]} Bc3 {[%emt 0:00:07]} 30. Rc1 {[%emt 0:02:27]} Bb4 {[%emt 0:00:06]} 31. Ra1 {[%emt 0:00:56]} Bc3 {[%emt 0:00:08]} 32. Rc1 {[%emt 0:00:21]} Bb4 {[%emt 0:00:04]} 33. Rc2 {[%emt 0:03:24]} Kf6 {[%emt 0:00:26]} 34. Re2 {[%emt 0:01:16]} Rxe2 {[%emt 0:01:00]} 35. Kxe2 {[%emt 0:00:03]} Kg5 {[%emt 0:00:25]} 36. Kf1 {[%emt 0:03:05] Weighted Error Value: White=0.02 (flawless) /Black=0.01 (flawless)} (36. a4 $11 {was the only way to keep the balance.}) 1/2-1/2

[Event "4NCL 2022-2023"]
[Site "Daventry"]
[Date "2023.01.14"]
[Round "3.12"]
[White "Willow, Jonah B"]
[Black "Turner, Matthew J"]
[Result "0-1"]
[ECO "B12"]
[WhiteElo "2431"]
[BlackElo "2451"]
[Annotator "TA"]
[PlyCount "70"]
[EventDate "2022.10.20"]
[EventType "team-tourn"]
[EventCountry "ENG"]
[SourceTitle "playchess.com"]
[Source "ChessBase"]
[SourceQuality "1"]
[TimeControl "40/6000+30:2400+30"]

{[%evp 9,70,9,40,34,52,-14,0,-21,1,0,0,0,31,-79,-67,-72,-50,-68,5,-46,-45,-47,0,0,0,-7,0,-11,0,0,0,0,0,0,8,-20,0,0,12,-26,-29,-25,-19,-93,-56,-481,-472,-441,-417,-557,-560,-564,-599,-760,-749,-749,-751,-749,-739,-687,-647,-669,-604]} 1. e4 {[%emt 0:02:37]} c6 {[%emt 0:00:17]} 2. d4 {[%emt 0:00:28]} d5 {[%emt 0:00:27]} 3. e5 {[%emt 0:00:14]} c5 {[%emt 0:00:39]} 4. Nf3 {[%emt 0:04:33]} Nc6 {[%emt 0:02:13]} 5. dxc5 {[%emt 0:00:21]} e6 {[%emt 0:01:11]} 6. Be3 {[%emt 0:01:05] B12: Caro-Kann: Advance Variation.} Nh6 {[%emt 0:01:48]} 7. Bb5 {[%emt 0:01:27]} ({White should try} 7. Bxh6 $14 gxh6 8. Nc3) 7... Nf5 $11 {[%emt 0:02:05]} 8. Bd4 {[%emt 0:03:54] The position is equal.} Bd7 {[%emt 0:03:15]} 9. Bxc6 {[%emt 0:08:05]} Bxc6 {[%emt 0:01:56]} 10. O-O {[%emt 0:02:41]} g5 {[%emt 0:20:57] [#]} 11. g4 $146 {[%emt 0:06:52]} (11. c3 $14 {stays ahead.}) ({Predecessor:} 11. c3 g4 12. Ne1 Rg8 13. Nd3 Bh6 14. g3 Qg5 15. a4 Qh5 16. b4 Qh3 17. Ra2 {0-1 Petrosian,D (2363)-Mahjoob,M (2442) Lahijan op 4th 2005 (10)}) 11... Nxd4 $17 {[%emt 0:00:32]} 12. Qxd4 {[%emt 0:02:27]} h5 {[%emt 0:00:48]} 13. Nbd2 {[%emt 0:20:04]} b6 {[%emt 0:06:51]} (13... hxg4 $15 14. Qxg4 Bxc5) 14. b4 {[%emt 0:09:06]} (14. gxh5 $11 bxc5 15. Qg4) 14... bxc5 $15 {[%emt 0:08:29]} 15. bxc5 {[%emt 0:00:01]} Qa5 {[%emt 0:01:23]} (15... hxg4 $15 16. Qxg4 Bxc5) 16. Nb3 {[%emt 0:01:08]} Qa4 {[%emt 0:00:22]} 17. h3 {[%emt 0:07:55]} Rc8 {[%emt 0:05:55]} 18. Rac1 {[%emt 0:13:01]} ({Reject} 18. Nxg5 Qxd4 19. Nxd4 Bxc5 20. Nxc6 Rxc6 $17) 18... Be7 {[%emt 0:02:14]} 19. Rfd1 {[%emt 0:03:26]} hxg4 {[%emt 0:04:14]} 20. hxg4 {[%emt 0:00:35]} Kf8 {[%emt 0:08:26]} 21. Qxa4 {[%emt 0:03:53]} Bxa4 {[%emt 0:00:05]} 22. Rd4 {[%emt 0:00:02]} Be8 {[%emt 0:04:08]} 23. Kg2 {[%emt 0:03:23]} a5 {[%emt 0:04:04][%mdl 64] Deflection} 24. Nxa5 {[%emt 0:05:58]} Bxc5 {[%emt 0:01:37][%cal Be7c5,Bc5b6,Bb6f2,Bf2d4,Bd4e5,Be5g3,Bg3f4][%mdl 32]} 25. Rd3 {[%emt 0:00:51]} Bb6 {[%emt 0:00:24]} 26. Nb7 {[%emt 0:02:05]} (26. Nb3 $11) 26... Rc4 $36 {[%emt 0:00:12][%mdl 2048] White is under pressure.} 27. Kg3 {[%emt 0:00:27][%mdl 8192] [#] White does not recover from this.} ({White has to play} 27. Nxg5 $15 Rxg4+ 28. Rg3) 27... f5 $1 $19 {[%emt 0:00:19][%csl Gf5][%cal Rc4g4]} 28. Nh2 {[%emt 0:04:00] [#]} Bxf2+ $1 {[%emt 0:01:29][%mdl 576] Decoy} 29. Kg2 {[%emt 0:01:15]} (29. Kxf2 Rxh2+) 29... Bd4 {[%emt 0:01:17] Black is clearly winning.} (29... fxg4 $2 {too greedy.} 30. Rf1 Rf4 31. Rxf2 $19) 30. gxf5 {[%emt 0:02:06]} Bxe5 {[%emt 0:01:53]} 31. Nf3 {[%emt 0:00:03]} Rg4+ {[%emt 0:00:34]} 32. Kf2 {[%emt 0:00:03]} Bg3+ {[%emt 0:00:08] This pair of bishops is nice.} 33. Ke2 {[%emt 0:00:39]} Re4+ {[%emt 0:00:31]} (33... exf5 $2 {perishes.} 34. Rxd5 Bf4 35. Re1 $19) 34. Kf1 {[%emt 0:00:24]} Bb5 {[%emt 0:04:11] ...Rh1+ is the strong threat.} 35. Kg2 {[%emt 0:01:03]} Bf4 {[%emt 0:00:24] Weighted Error Value: White=0.53/Black=0.12 (very precise)} 0-1